[Event "European Womens-ch 2025"]
[Site "Rhodes"]
[Date "2025.04.08"]
[Round "8.23"]
[White "Gaboyan, Susanna"]
[Black "Heinemann, Josefine"]
[Result "1/2-1/2"]
[Annotator "RC"]
[ECO "B22"]
[WhiteElo "2200"]
[BlackElo "2297"]
[PlyCount "120"]
[EventDate "2025.03.29"]
[EventType "swiss"]
[EventCountry "GRE"]
[SourceTitle "playchess.com"]
[Source "ChessBase"]
[SourceQuality "1"]
[TimeControl "40/5400+30:1800+30"]

1. e4 {[%emt 0:01:34]} c5 {[%emt 0:00:07]} 2. c3 {[%emt 0:00:26]} Nf6 {[%emt 0:00:34]} 3. e5 {[%emt 0:00:06]} Nd5 {[%emt 0:00:04]} 4. Bc4 {[%emt 0:00:06]} Nb6 {[%emt 0:01:07]} 5. Bb3 {[%emt 0:00:08]} c4 {[%emt 0:00:27]} 6. Bc2 {[%emt 0:00:07]} Nc6 {[%emt 0:00:34]} 7. Nf3 {[%emt 0:00:14]} d6 {[%emt 0:00:10]} 8. exd6 {[%emt 0:00:33]} Qxd6 {[%emt 0:00:06]} 9. O-O {[%emt 0:01:49]} Bg4 {[%emt 0:02:24]} 10. Re1 {[%emt 0:06:02]} Ne5 {[%emt 0:01:15]} 11. Rxe5 {[%emt 0:01:14]} Bxf3 {[%emt 0:00:05]} 12. Qe1 {[%emt 0:00:05]} Bc6 {[%emt 0:00:07]} 13. b3 {[%emt 0:00:24]} g6 {[%emt 0:03:18]} 14. Ba3 {[%emt 0:01:41]} Qc7 {[%emt 0:03:37]} 15. Bc5 {[%emt 0:03:21]} f6 {[%emt 0:09:44]} 16. Re6 {[%emt 0:06:19]} Bd5 {[%emt 0:05:47]} 17. Bd6 {[%emt 0:18:57]} Qd7 {[%emt 0:04:11]} 18. Rxf6 {[%emt 0:00:09]} Bg7 {[%emt 0:04:41]} 19. Bxg6+ {[%emt 0:03:07]} hxg6 {[%emt 0:03:57]} 20. Rxg6 {[%emt 0:00:07]} O-O-O {[%emt 0:11:38]} 21. Qxe7 {[%emt 0:09:49]} Rhe8 {[%emt 0:02:46]} 22. Qxd7+ {[%emt 0:00:16]} Rxd7 {[%emt 0:00:03]} 23. Na3 {[%emt 0:00:41]} Be4 {[%emt 0:06:23]} 24. Rg3 {[%emt 0:00:25]} Bh6 {[%emt 0:03:20]} 25. Bc5 {[%emt 0:05:13]} cxb3 {[%emt 0:05:48]} 26. axb3 {[%emt 0:00:30]} Bd3 {[%emt 0:00:17]} 27. Bd4 {[%emt 0:06:57]} Ba6 {[%emt 0:00:16]} 28. b4 {[%emt 0:05:39]} Nc4 {[%emt 0:05:03]} 29. Nxc4 {[%emt 0:01:48]} Bxc4 {[%emt 0:00:03]} 30. Bxa7 {[%emt 0:04:59]} Rxd2 {[%emt 0:05:45]} 31. h3 {[%emt 0:06:29]} Bf4 {[%emt 0:04:26]} 32. Rf3 {[%emt 0:09:52]} Ra2 {[%emt 0:00:56]} 33. Rb1 {[%emt 0:00:21]} Re4 {[%emt 0:04:25]} 34. g3 {[%emt 0:06:00]} Rxa7 {[%emt 0:00:14]} 35. Rxf4 {[%emt 0:01:36]} Rxf4 {[%emt 0:00:05]} 36. gxf4 {[%emt 0:00:02]} b5 {[%emt 0:01:42]} 37. Rd1 {[%emt 0:01:11]} Ra3 {[%emt 0:02:41]} 38. Rc1 {[%emt 0:00:16]} Kd7 {[%emt 0:00:07]} 39. Kg2 {[%emt 0:00:17]} Ke6 {[%emt 0:00:04]} 40. Kf3 {[%emt 0:00:00]} Kf5 {[%emt 0:00:00]} 41. h4 {[%emt 0:08:21]} Ra8 {[%emt 0:06:08]} 42. Rg1 {[%emt 0:14:31]} Bd5+ {[%emt 0:00:36]} 43. Ke3 {[%emt 0:00:59]} Re8+ {[%emt 0:00:07]} 44. Kd4 {[%emt 0:00:50]} Bc4 {[%emt 0:00:04]} 45. h5 {[%emt 0:02:20]} Re4+ {[%emt 0:04:33]} 46. Kc5 {[%emt 0:00:02]} Kxf4 {[%emt 0:00:05]} 47. Rh1 {[%emt 0:02:36]} Re5+ {[%emt 0:00:57]} 48. Kb6 {[%emt 0:00:08]} Re6+ {[%emt 0:00:04]} 49. Kc5 {[%emt 0:00:16]} Rh6 {[%emt 0:00:08]} 50. Rh4+ {[%emt 0:00:29]} Kg5 {[%emt 0:00:06]} 51. Rxc4 {[%emt 0:06:38]} bxc4 {[%emt 0:00:06]} 52. b5 {[%emt 0:00:00]} Rxh5 {[%emt 0:03:53]} 53. b6 {[%emt 0:00:00]} Rh1 {[%emt 0:00:20]} 54. Kxc4 {[%emt 0:00:00]} Rc1 {[%emt 0:03:17]} 55. Kd5 {[%emt 0:00:33]} Rxc3 {[%emt 0:00:06]} 56. b7 {[%emt 0:00:04]} Rb3 {[%emt 0:00:04]} 57. Kc6 {[%emt 0:00:04]} Kf4 {[%emt 0:00:44]} 58. Kc7 {[%emt 0:00:05]} Kf3 {[%emt 0:00:04]} 59. b8=Q {[%emt 0:00:04]} Rxb8 {[%emt 0:00:04]} 60. Kxb8 {[%emt 0:00:04]} Kxf2 {[%emt 0:30:47]} 1/2-1/2

[Event "European Womens-ch 2025"]
[Site "Rhodes"]
[Date "2025.04.08"]
[Round "8.24"]
[White "Ibrahimova, Sabina"]
[Black "Yao, Lan"]
[Result "1/2-1/2"]
[Annotator "RC"]
[ECO "D31"]
[WhiteElo "2199"]
[BlackElo "2294"]
[PlyCount "141"]
[EventDate "2025.03.29"]
[EventType "swiss"]
[EventCountry "GRE"]
[SourceTitle "playchess.com"]
[Source "ChessBase"]
[SourceQuality "1"]
[TimeControl "40/5400+30:1800+30"]

1. c4 {[%emt 0:03:53]} e6 {[%emt 0:00:24]} 2. Nc3 {[%emt 0:00:11]} d5 {[%emt 0:00:11]} 3. d4 {[%emt 0:00:12]} a6 {[%emt 0:00:11]} 4. cxd5 {[%emt 0:01:03]} exd5 {[%emt 0:00:06]} 5. Bf4 {[%emt 0:00:39]} Nf6 {[%emt 0:00:16]} 6. Bg5 {[%emt 0:00:38]} c6 {[%emt 0:05:39]} 7. e3 {[%emt 0:01:02]} Bd6 {[%emt 0:00:33]} 8. Bd3 {[%emt 0:01:41]} O-O {[%emt 0:00:19]} 9. Nge2 {[%emt 0:01:51]} Re8 {[%emt 0:01:05]} 10. Qc2 {[%emt 0:02:31]} h6 {[%emt 0:00:06]} 11. Bh4 {[%emt 0:03:54]} a5 {[%emt 0:00:17]} 12. Bg3 {[%emt 0:05:14]} Bxg3 {[%emt 0:00:12]} 13. Nxg3 {[%emt 0:01:17]} Na6 {[%emt 0:00:15]} 14. a3 {[%emt 0:00:41]} Nc7 {[%emt 0:01:10]} 15. O-O {[%emt 0:01:00]} h5 {[%emt 0:00:44]} 16. Nf5 {[%emt 0:05:35]} Ne6 {[%emt 0:08:29]} 17. Rfe1 {[%emt 0:05:37]} Ng5 {[%emt 0:09:45]} 18. f3 {[%emt 0:04:53]} Be6 {[%emt 0:15:40]} 19. Rad1 {[%emt 0:03:01]} g6 {[%emt 0:02:58]} 20. Nh4 {[%emt 0:00:56]} Ngh7 {[%emt 0:06:20]} 21. Qf2 {[%emt 0:05:38]} Qd7 {[%emt 0:03:41]} 22. Na4 {[%emt 0:08:02]} Qd6 {[%emt 0:01:23]} 23. Bb1 {[%emt 0:07:31]} Rad8 {[%emt 0:03:02]} 24. Nc3 {[%emt 0:02:27]} Re7 {[%emt 0:10:07]} 25. Bc2 {[%emt 0:07:52]} Bc8 {[%emt 0:04:52]} 26. Rf1 {[%emt 0:06:26]} Ng5 {[%emt 0:03:22]} 27. e4 {[%emt 0:04:26]} dxe4 {[%emt 0:00:18]} 28. fxe4 {[%emt 0:00:11]} Ng4 {[%emt 0:04:15]} 29. e5 {[%emt 0:00:45]} Qc7 {[%emt 0:00:49]} 30. Qg3 {[%emt 0:01:56]} Qb6 {[%emt 0:02:57]} 31. Na4 {[%emt 0:09:15]} Qa7 {[%emt 0:00:20]} 32. Nc5 {[%emt 0:01:23]} Ne6 {[%emt 0:08:25]} 33. Nxe6 {[%emt 0:02:42]} Bxe6 {[%emt 0:00:06]} 34. Nf3 {[%emt 0:01:03]} Bd5 {[%emt 0:02:29]} 35. Kh1 {[%emt 0:01:01]} b5 {[%emt 0:01:33]} 36. Rfe1 {[%emt 0:00:59]} Kg7 {[%emt 0:02:16]} 37. h3 {[%emt 0:00:24]} Bxf3 {[%emt 0:01:33]} 38. Qxf3 {[%emt 0:00:41]} Nh6 {[%emt 0:00:29]} 39. Qf6+ {[%emt 0:00:31]} Kh7 {[%emt 0:00:51]} 40. Qg5 {[%emt 0:00:00]} Qc7 {[%emt 0:00:00]} 41. Qxh5 {[%emt 0:03:49]} Rd5 {[%emt 0:03:39]} 42. Rf1 {[%emt 0:04:35]} Re6 {[%emt 0:12:42]} 43. Qh4 {[%emt 0:07:23]} c5 {[%emt 0:04:57]} 44. Bb3 {[%emt 0:00:23]} c4 {[%emt 0:00:16]} 45. Bc2 {[%emt 0:00:06]} Qe7 {[%emt 0:02:04]} 46. Qg3 {[%emt 0:01:47]} Rd8 {[%emt 0:03:24]} 47. Rf4 {[%emt 0:04:38]} Kg7 {[%emt 0:01:17]} 48. Rdf1 {[%emt 0:00:49]} Rd7 {[%emt 0:02:05]} 49. Rf6 {[%emt 0:02:46]} Qe8 {[%emt 0:01:42]} 50. Rxe6 {[%emt 0:03:28]} fxe6 {[%emt 0:03:02]} 51. Rf6 {[%emt 0:00:26]} Nf5 {[%emt 0:00:08]} 52. Bxf5 {[%emt 0:01:05]} exf5 {[%emt 0:00:02]} 53. Qh4 {[%emt 0:05:07]} b4 {[%emt 0:02:41]} 54. e6 {[%emt 0:01:19]} Rb7 {[%emt 0:00:29]} 55. axb4 {[%emt 0:00:10]} axb4 {[%emt 0:00:04]} 56. d5 {[%emt 0:00:20]} c3 {[%emt 0:00:57]} 57. Qd4 {[%emt 0:00:07]} Kg8 {[%emt 0:01:14]} 58. d6 {[%emt 0:00:56]} c2 {[%emt 0:00:31]} 59. Qc5 {[%emt 0:00:48]} Qb5 {[%emt 0:00:46]} 60. Qc8+ {[%emt 0:00:33]} Kh7 {[%emt 0:00:11]} 61. Qxc2 {[%emt 0:00:31]} Qf1+ {[%emt 0:00:10]} 62. Kh2 {[%emt 0:00:10]} Qf4+ {[%emt 0:00:03]} 63. g3 {[%emt 0:00:51]} Qxd6 {[%emt 0:00:17]} 64. h4 {[%emt 0:00:39]} Kg7 {[%emt 0:00:29]} 65. Rf7+ {[%emt 0:00:33]} Rxf7 {[%emt 0:00:05]} 66. exf7 {[%emt 0:00:06]} Kxf7 {[%emt 0:00:03]} 67. h5 {[%emt 0:00:30]} Kg7 {[%emt 0:00:17]} 68. hxg6 {[%emt 0:00:36]} Kxg6 {[%emt 0:00:05]} 69. Kh3 {[%emt 0:00:43]} Qd5 {[%emt 0:00:33]} 70. Kh2 {[%emt 0:00:14]} Qd6 {[%emt 0:00:03]} 71. Qe4 {[%emt 0:01:30]} 1/2-1/2

[Event "European Womens-ch 2025"]
[Site "Rhodes"]
[Date "2025.04.08"]
[Round "8.25"]
[White "Zimina, Olga"]
[Black "Sandu, Mihaela"]
[Result "1/2-1/2"]
[Annotator "RC"]
[ECO "D02"]
[WhiteElo "2293"]
[BlackElo "2230"]
[PlyCount "100"]
[EventDate "2025.03.29"]
[EventType "swiss"]
[EventCountry "GRE"]
[SourceTitle "playchess.com"]
[Source "ChessBase"]
[SourceQuality "1"]
[TimeControl "40/5400+30:1800+30"]

1. d4 {[%emt 0:00:04]} Nf6 {[%emt 0:00:07]} 2. Nf3 {[%emt 0:00:05]} e6 {[%emt 0:00:09]} 3. Bf4 {[%emt 0:00:06]} c5 {[%emt 0:07:44]} 4. e3 {[%emt 0:00:06]} Nc6 {[%emt 0:01:10]} 5. c3 {[%emt 0:00:25]} d5 {[%emt 0:07:45]} 6. Nbd2 {[%emt 0:00:14]} h6 {[%emt 0:00:26]} 7. Bd3 {[%emt 0:01:07]} Bd6 {[%emt 0:04:32]} 8. Bg3 {[%emt 0:02:36]} cxd4 {[%emt 0:04:32]} 9. exd4 {[%emt 0:01:13]} Nh5 {[%emt 0:07:39]} 10. Bxd6 {[%emt 0:01:30]} Qxd6 {[%emt 0:00:04]} 11. O-O {[%emt 0:00:50]} Nf4 {[%emt 0:00:19]} 12. Bc2 {[%emt 0:00:21]} Bd7 {[%emt 0:07:37]} 13. Re1 {[%emt 0:01:52]} O-O-O {[%emt 0:11:20]} 14. Ne5 {[%emt 0:04:47]} Nxe5 {[%emt 0:00:57]} 15. dxe5 {[%emt 0:00:46]} Qb6 {[%emt 0:01:58]} 16. Nb3 {[%emt 0:20:13]} f6 {[%emt 0:10:44]} 17. a4 {[%emt 0:06:02]} fxe5 {[%emt 0:01:38]} 18. Rxe5 {[%emt 0:00:09]} Rhf8 {[%emt 0:01:04]} 19. Qd4 {[%emt 0:00:27]} Qxd4 {[%emt 0:11:17]} 20. Nxd4 {[%emt 0:02:18]} Rf6 {[%emt 0:00:04]} 21. Rae1 {[%emt 0:07:53]} Kc7 {[%emt 0:05:04]} 22. h4 {[%emt 0:01:03]} Rg8 {[%emt 0:01:18]} 23. g3 {[%emt 0:09:39]} Nh3+ {[%emt 0:01:14]} 24. Kg2 {[%emt 0:00:17]} Nxf2 {[%emt 0:00:08]} 25. Nxe6+ {[%emt 0:00:16]} Kb8 {[%emt 0:03:08]} 26. Rf5 {[%emt 0:21:07]} Rxf5 {[%emt 0:06:00]} 27. Bxf5 {[%emt 0:00:10]} Ne4 {[%emt 0:00:10]} 28. a5 {[%emt 0:02:10]} Nd6 {[%emt 0:01:12]} 29. Bg6 {[%emt 0:01:46]} Nc4 {[%emt 0:01:00]} 30. b4 {[%emt 0:00:06]} Nd6 {[%emt 0:01:39]} 31. Nd4 {[%emt 0:08:32]} Rc8 {[%emt 0:00:05]} 32. Re7 {[%emt 0:00:56]} Bg4 {[%emt 0:00:05]} 33. Re3 {[%emt 0:02:04]} a6 {[%emt 0:00:44]} 34. Kf2 {[%emt 0:00:34]} Nc4 {[%emt 0:00:38]} 35. Re7 {[%emt 0:00:15]} Nb2 {[%emt 0:00:22]} 36. Rxg7 {[%emt 0:00:43]} Nd1+ {[%emt 0:01:06]} 37. Ke1 {[%emt 0:00:17]} Nxc3 {[%emt 0:00:04]} 38. Bd3 {[%emt 0:04:26]} h5 {[%emt 0:00:28]} 39. Nb3 {[%emt 0:00:09]} Na4 {[%emt 0:00:41]} 40. Kd2 {[%emt 0:00:00]} Rc3 {[%emt 0:00:00]} 41. Nc5 {[%emt 0:07:39]} Ra3 {[%emt 0:06:01]} 42. Nxb7 {[%emt 0:03:26]} d4 {[%emt 0:05:41]} 43. Bxa6 {[%emt 0:06:01]} Ra2+ {[%emt 0:00:18]} 44. Kc1 {[%emt 0:01:04]} Bf5 {[%emt 0:03:01]} 45. Nd6 {[%emt 0:06:30]} d3 {[%emt 0:04:57]} 46. Rb7+ {[%emt 0:03:22]} Ka8 {[%emt 0:00:50]} 47. Bxd3 {[%emt 0:00:37]} Bxd3 {[%emt 0:00:07]} 48. Rc7 {[%emt 0:00:14]} Rb2 {[%emt 0:01:41]} 49. Rc8+ {[%emt 0:01:15]} Ka7 {[%emt 0:00:06]} 50. Rc7+ {[%emt 0:00:10]} Ka8 {[%emt 0:00:01]} 1/2-1/2

[Event "European Womens-ch 2025"]
[Site "Rhodes"]
[Date "2025.04.08"]
[Round "8.27"]
[White "Allahverdiyeva, Ayan"]
[Black "Mgeladze, Kesaria"]
[Result "0-1"]
[Annotator "RC"]
[ECO "B67"]
[WhiteElo "2266"]
[BlackElo "2200"]
[PlyCount "100"]
[EventDate "2025.03.29"]
[EventType "swiss"]
[EventCountry "GRE"]
[SourceTitle "playchess.com"]
[Source "ChessBase"]
[SourceQuality "1"]
[TimeControl "40/5400+30:1800+30"]

1. e4 {[%emt 0:02:56]} c5 {[%emt 0:00:06]} 2. Nf3 {[%emt 0:00:03]} d6 {[%emt 0:00:06]} 3. d4 {[%emt 0:00:03]} cxd4 {[%emt 0:00:06]} 4. Nxd4 {[%emt 0:00:03]} Nf6 {[%emt 0:00:07]} 5. Nc3 {[%emt 0:00:02]} Nc6 {[%emt 0:00:06]} 6. Bg5 {[%emt 0:00:03]} e6 {[%emt 0:00:14]} 7. Qd2 {[%emt 0:00:02]} a6 {[%emt 0:00:06]} 8. O-O-O {[%emt 0:00:04]} Bd7 {[%emt 0:00:06]} 9. Kb1 {[%emt 0:00:05]} Be7 {[%emt 0:05:10]} 10. f3 {[%emt 0:04:31]} b5 {[%emt 0:06:00]} 11. Nxc6 {[%emt 0:03:09]} Bxc6 {[%emt 0:00:06]} 12. Qe1 {[%emt 0:01:41]} Qb6 {[%emt 0:14:29]} 13. Ne2 {[%emt 0:07:19]} Rc8 {[%emt 0:10:30]} 14. Nd4 {[%emt 0:06:58]} Bd7 {[%emt 0:01:00]} 15. h4 {[%emt 0:01:08]} h6 {[%emt 0:19:35]} 16. Be3 {[%emt 0:00:32]} Qc7 {[%emt 0:00:07]} 17. Qd2 {[%emt 0:05:16]} e5 {[%emt 0:04:22]} 18. Nf5 {[%emt 0:07:34]} Bxf5 {[%emt 0:00:42]} 19. exf5 {[%emt 0:00:02]} d5 {[%emt 0:00:33]} 20. c3 {[%emt 0:02:14]} b4 {[%emt 0:11:37]} 21. c4 {[%emt 0:03:55]} dxc4 {[%emt 0:03:34]} 22. Bxc4 {[%emt 0:01:16]} Qxc4 {[%emt 0:00:25]} 23. Rc1 {[%emt 0:00:12]} Ne4 {[%emt 0:00:08]} 24. fxe4 {[%emt 0:06:05]} Qxe4+ {[%emt 0:00:04]} 25. Ka1 {[%emt 0:00:02]} Rxc1+ {[%emt 0:00:57]} 26. Qxc1 {[%emt 0:00:06]} O-O {[%emt 0:01:23]} 27. g4 {[%emt 0:04:40]} Qxg4 {[%emt 0:02:39]} 28. Bxh6 {[%emt 0:04:24]} Qxf5 {[%emt 0:00:05]} 29. Rg1 {[%emt 0:03:32]} Bf6 {[%emt 0:02:05]} 30. Rf1 {[%emt 0:01:55]} Qg4 {[%emt 0:05:24]} 31. Bg5 {[%emt 0:07:10]} Rc8 {[%emt 0:01:25]} 32. Qd2 {[%emt 0:01:51]} Bxg5 {[%emt 0:01:44]} 33. hxg5 {[%emt 0:00:04]} Qd4 {[%emt 0:01:14]} 34. Qg2 {[%emt 0:04:21]} Qe3 {[%emt 0:02:12]} 35. Kb1 {[%emt 0:00:16]} Qd3+ {[%emt 0:01:08]} 36. Ka1 {[%emt 0:00:05]} Qc2 {[%emt 0:01:49]} 37. Qg1 {[%emt 0:01:26]} b3 {[%emt 0:04:03]} 38. axb3 {[%emt 0:03:28]} Qxb3 {[%emt 0:00:42]} 39. Qa7 {[%emt 0:02:31]} Rb8 {[%emt 0:02:10]} 40. Rf2 {[%emt 0:00:00]} Rd8 {[%emt 0:00:00]} 41. Rf1 {[%emt 0:02:41]} g6 {[%emt 0:15:58]} 42. Qe7 {[%emt 0:13:26]} Qd5 {[%emt 0:03:10]} 43. Rc1 {[%emt 0:05:03]} Rb8 {[%emt 0:02:05]} 44. Qa3 {[%emt 0:03:20]} Qd2 {[%emt 0:03:21]} 45. Rg1 {[%emt 0:05:21]} e4 {[%emt 0:01:11]} 46. Rg3 {[%emt 0:00:58]} Rxb2 {[%emt 0:05:01]} 47. Rc3 {[%emt 0:05:37]} Rb8 {[%emt 0:00:55]} 48. Rc1 {[%emt 0:02:51]} e3 {[%emt 0:00:42]} 49. Rh1 {[%emt 0:00:16]} Qd4+ {[%emt 0:00:08]} 50. Ka2 {[%emt 0:00:08]} Qd5+ {[%emt 0:00:04]} 0-1

[Event "European Womens-ch 2025"]
[Site "Rhodes"]
[Date "2025.04.08"]
[Round "8.28"]
[White "Gaponenko, Inna"]
[Black "Abdinova, Narmin"]
[Result "1/2-1/2"]
[Annotator "RC"]
[ECO "C78"]
[WhiteElo "2349"]
[BlackElo "2165"]
[PlyCount "102"]
[EventDate "2025.03.29"]
[EventType "swiss"]
[EventCountry "GRE"]
[SourceTitle "playchess.com"]
[Source "ChessBase"]
[SourceQuality "1"]
[TimeControl "40/5400+30:1800+30"]

1. e4 {[%emt 0:00:02]} e5 {[%emt 0:01:35]} 2. Nf3 {[%emt 0:00:04]} Nc6 {[%emt 0:00:08]} 3. Bb5 {[%emt 0:00:06]} a6 {[%emt 0:00:04]} 4. Ba4 {[%emt 0:00:04]} Nf6 {[%emt 0:00:05]} 5. O-O {[%emt 0:00:20]} b5 {[%emt 0:00:15]} 6. Bb3 {[%emt 0:00:06]} Bc5 {[%emt 0:00:04]} 7. a4 {[%emt 0:00:04]} Rb8 {[%emt 0:00:03]} 8. axb5 {[%emt 0:00:05]} axb5 {[%emt 0:00:04]} 9. Nxe5 {[%emt 0:00:05]} Nxe5 {[%emt 0:00:05]} 10. d4 {[%emt 0:00:04]} Bxd4 {[%emt 0:00:18]} 11. Qxd4 {[%emt 0:00:05]} d6 {[%emt 0:00:03]} 12. f4 {[%emt 0:00:06]} Nc6 {[%emt 0:07:51]} 13. Qd3 {[%emt 0:05:11]} O-O {[%emt 0:03:00]} 14. Nc3 {[%emt 0:00:07]} Re8 {[%emt 0:03:48]} 15. e5 {[%emt 0:03:29]} dxe5 {[%emt 0:02:25]} 16. Qxd8 {[%emt 0:00:06]} Nxd8 {[%emt 0:07:03]} 17. fxe5 {[%emt 0:00:08]} Rxe5 {[%emt 0:03:36]} 18. Bf4 {[%emt 0:00:32]} Rc5 {[%emt 0:36:17]} 19. Be3 {[%emt 0:08:15]} Rh5 {[%emt 0:03:18]} 20. Ba7 {[%emt 0:19:32]} Ra8 {[%emt 0:00:13]} 21. Bd4 {[%emt 0:00:10]} Rxa1 {[%emt 0:00:47]} 22. Rxa1 {[%emt 0:00:05]} Bb7 {[%emt 0:00:17]} 23. Bxf6 {[%emt 0:09:00]} gxf6 {[%emt 0:00:08]} 24. Rd1 {[%emt 0:00:15]} Ne6 {[%emt 0:03:48]} 25. Bxe6 {[%emt 0:00:09]} fxe6 {[%emt 0:00:06]} 26. Rd8+ {[%emt 0:00:03]} Kf7 {[%emt 0:00:35]} 27. Rd7+ {[%emt 0:00:02]} Kg6 {[%emt 0:00:15]} 28. Rxc7 {[%emt 0:00:03]} Bd5 {[%emt 0:03:13]} 29. Rc5 {[%emt 0:16:25]} b4 {[%emt 0:07:22]} 30. Nxd5 {[%emt 0:32:24]} exd5 {[%emt 0:00:04]} 31. Rb5 {[%emt 0:00:05]} Re5 {[%emt 0:00:38]} 32. Rxb4 {[%emt 0:00:16]} Re2 {[%emt 0:00:10]} 33. c3 {[%emt 0:00:14]} Rc2 {[%emt 0:00:54]} 34. Rb5 {[%emt 0:08:24]} f5 {[%emt 0:00:19]} 35. g3 {[%emt 0:01:15]} Kg5 {[%emt 0:00:34]} 36. h3 {[%emt 0:00:22]} h5 {[%emt 0:00:07]} 37. Rxd5 {[%emt 0:00:40]} Rxb2 {[%emt 0:00:08]} 38. Rd4 {[%emt 0:00:22]} Rc2 {[%emt 0:02:28]} 39. Rd3 {[%emt 0:00:28]} h4 {[%emt 0:03:14]} 40. gxh4+ {[%emt 0:00:00]} Kxh4 {[%emt 0:00:00]} 41. Kf1 {[%emt 0:02:38]} Kg5 {[%emt 0:11:15]} 42. Ke1 {[%emt 0:02:44]} Kf4 {[%emt 0:01:11]} 43. Kd1 {[%emt 0:02:37]} Rh2 {[%emt 0:00:51]} 44. c4 {[%emt 0:00:18]} Ke4 {[%emt 0:00:05]} 45. Rc3 {[%emt 0:00:04]} f4 {[%emt 0:00:39]} 46. c5 {[%emt 0:00:51]} f3 {[%emt 0:01:14]} 47. Ke1 {[%emt 0:04:43]} Rxh3 {[%emt 0:01:41]} 48. Kf2 {[%emt 0:00:04]} Rh2+ {[%emt 0:00:28]} 49. Kg1 {[%emt 0:00:08]} Rg2+ {[%emt 0:04:13]} 50. Kf1 {[%emt 0:00:03]} Kd4 {[%emt 0:02:30]} 51. Rxf3 {[%emt 0:00:06]} Rc2 {[%emt 0:00:06]} 1/2-1/2

[Event "European Womens-ch 2025"]
[Site "Rhodes"]
[Date "2025.04.08"]
[Round "8.29"]
[White "Schloffer, Jasmin-Denise"]
[Black "Wagner, Dinara"]
[Result "0-1"]
[Annotator "RC"]
[ECO "D32"]
[WhiteElo "2188"]
[BlackElo "2440"]
[PlyCount "138"]
[EventDate "2025.03.29"]
[EventType "swiss"]
[EventCountry "GRE"]
[SourceTitle "playchess.com"]
[Source "ChessBase"]
[SourceQuality "1"]
[TimeControl "40/5400+30:1800+30"]

1. d4 {[%emt 0:00:03]} Nf6 {[%emt 0:00:04]} 2. c4 {[%emt 0:00:08]} e6 {[%emt 0:00:04]} 3. Nc3 {[%emt 0:00:07]} Bb4 {[%emt 0:00:18]} 4. e3 {[%emt 0:00:07]} O-O {[%emt 0:00:05]} 5. Nf3 {[%emt 0:00:05]} c5 {[%emt 0:00:59]} 6. Bd3 {[%emt 0:00:41]} d5 {[%emt 0:00:56]} 7. cxd5 {[%emt 0:01:50]} exd5 {[%emt 0:00:12]} 8. O-O {[%emt 0:04:48]} Bg4 {[%emt 0:07:24]} 9. dxc5 {[%emt 0:07:52]} Bxc5 {[%emt 0:05:13]} 10. Be2 {[%emt 0:04:57]} Nc6 {[%emt 0:03:23]} 11. a3 {[%emt 0:03:19]} a5 {[%emt 0:14:46]} 12. Qc2 {[%emt 0:12:13]} Qe7 {[%emt 0:06:49]} 13. Rd1 {[%emt 0:01:37]} Rfd8 {[%emt 0:01:18]} 14. Qa4 {[%emt 0:11:09]} Bxf3 {[%emt 0:38:48]} 15. Bxf3 {[%emt 0:01:27]} d4 {[%emt 0:00:02]} 16. Bxc6 {[%emt 0:04:23]} bxc6 {[%emt 0:02:00]} 17. exd4 {[%emt 0:01:10]} Rxd4 {[%emt 0:00:03]} 18. Qc2 {[%emt 0:00:53]} Rxd1+ {[%emt 0:00:53]} 19. Qxd1 {[%emt 0:00:12]} Ng4 {[%emt 0:00:05]} 20. Be3 {[%emt 0:03:20]} Nxe3 {[%emt 0:02:16]} 21. fxe3 {[%emt 0:00:08]} Qxe3+ {[%emt 0:00:02]} 22. Kh1 {[%emt 0:00:07]} Re8 {[%emt 0:00:06]} 23. h3 {[%emt 0:05:36]} Qe5 {[%emt 0:02:19]} 24. Qd2 {[%emt 0:06:22]} Qg3 {[%emt 0:02:47]} 25. Rd1 {[%emt 0:02:12]} h5 {[%emt 0:00:16]} 26. Ne2 {[%emt 0:02:00]} Qf2 {[%emt 0:05:36]} 27. Nf4 {[%emt 0:06:19]} Qxd2 {[%emt 0:02:06]} 28. Rxd2 {[%emt 0:00:06]} Re1+ {[%emt 0:00:03]} 29. Kh2 {[%emt 0:00:05]} h4 {[%emt 0:00:06]} 30. g4 {[%emt 0:00:43]} Be3 {[%emt 0:00:54]} 31. Rd8+ {[%emt 0:00:31]} Kh7 {[%emt 0:00:03]} 32. Nd3 {[%emt 0:02:21]} Re2+ {[%emt 0:00:09]} 33. Kh1 {[%emt 0:00:04]} Rd2 {[%emt 0:01:02]} 34. b4 {[%emt 0:01:44]} a4 {[%emt 0:01:59]} 35. Rd7 {[%emt 0:03:11]} Rd1+ {[%emt 0:00:25]} 36. Kg2 {[%emt 0:00:10]} Bc1 {[%emt 0:00:02]} 37. Nc5 {[%emt 0:00:20]} Rxd7 {[%emt 0:00:17]} 38. Nxd7 {[%emt 0:00:05]} Bxa3 {[%emt 0:00:03]} 39. Nb6 {[%emt 0:00:06]} Bxb4 {[%emt 0:00:07]} 40. Nxa4 {[%emt 0:00:00]} Kg6 {[%emt 0:00:00]} 41. Kf3 {[%emt 0:00:40]} Kf6 {[%emt 0:01:45]} 42. Ke4 {[%emt 0:00:10]} Ke6 {[%emt 0:00:27]} 43. Nb2 {[%emt 0:02:33]} g6 {[%emt 0:02:58]} 44. Nc4 {[%emt 0:02:10]} f5+ {[%emt 0:02:17]} 45. gxf5+ {[%emt 0:00:59]} gxf5+ {[%emt 0:00:03]} 46. Kf4 {[%emt 0:00:12]} Kf6 {[%emt 0:01:07]} 47. Kf3 {[%emt 0:00:52]} Be1 {[%emt 0:00:41]} 48. Ke2 {[%emt 0:02:34]} Bb4 {[%emt 0:01:10]} 49. Kf3 {[%emt 0:00:21]} Bc3 {[%emt 0:00:06]} 50. Ne3 {[%emt 0:02:05]} Be5 {[%emt 0:01:17]} 51. Nc4 {[%emt 0:00:33]} Bc7 {[%emt 0:00:11]} 52. Ke3 {[%emt 0:00:39]} c5 {[%emt 0:01:25]} 53. Nd2 {[%emt 0:01:20]} Ke6 {[%emt 0:00:57]} 54. Nf3 {[%emt 0:00:29]} Bg3 {[%emt 0:00:25]} 55. Kd3 {[%emt 0:00:19]} Kd5 {[%emt 0:00:06]} 56. Nd2 {[%emt 0:00:23]} Ke5 {[%emt 0:02:42]} 57. Nc4+ {[%emt 0:03:34]} Kf4 {[%emt 0:01:17]} 58. Nd6 {[%emt 0:00:57]} Bf2 {[%emt 0:00:18]} 59. Ke2 {[%emt 0:01:20]} Bd4 {[%emt 0:00:52]} 60. Kf1 {[%emt 0:00:45]} Be5 {[%emt 0:01:02]} 61. Nc4 {[%emt 0:00:06]} Bf6 {[%emt 0:02:06]} 62. Kf2 {[%emt 0:01:08]} Bd4+ {[%emt 0:00:30]} 63. Kg2 {[%emt 0:00:12]} Ke4 {[%emt 0:01:30]} 64. Nd6+ {[%emt 0:00:45]} Ke5 {[%emt 0:00:03]} 65. Nc4+ {[%emt 0:02:15]} Kd5 {[%emt 0:00:12]} 66. Nd2 {[%emt 0:00:08]} c4 {[%emt 0:00:44]} 67. Kf3 {[%emt 0:00:22]} c3 {[%emt 0:00:37]} 68. Nb3 {[%emt 0:00:05]} Kc4 {[%emt 0:01:05]} 69. Nc1 {[%emt 0:00:06]} Be5 {[%emt 0:00:15]} 0-1